[Event "Titled Tuesday Blitz February 21 Late 2023"]
[White "Defend, Balint"]
[Black "Tarnowska, Aleksandra"]
[WhiteFideId "17004853"]
[BlackFideId "1180967"]
[WhiteElo "1673"]
[BlackElo "1835"]
[Result "1-0"]
[Round "01"]
[TimeControl "180+2"]
[Date "2023.02.21"]
[WhiteClock "0:00:59"]
[BlackClock "0:00:01"]

1. e4 {[%clk 0:02:58]}  c5 {[%clk 0:03:00]} 2. Nf3 {[%clk 0:02:54]}  e6 {[%clk 0:03:00]} 3. c3 {[%clk 0:02:54]}  d5 {[%clk 0:03:00]} 4. exd5 {[%clk 0:02:50]}  Qxd5 {[%clk 0:03:00]} 5. d4 {[%clk 0:02:47]}  Nf6 {[%clk 0:02:59]} 6. Na3 {[%clk 0:02:44]}  Be7 {[%clk 0:02:55]} 7. Nb5 {[%clk 0:02:40]}  Qd8 {[%clk 0:02:49]} 8. Bf4 {[%clk 0:02:35]}  Na6 {[%clk 0:02:46]} 9. dxc5 {[%clk 0:02:30]}  Qxd1+ {[%clk 0:02:21]} 10. Rxd1 {[%clk 0:02:31]}  Bxc5 {[%clk 0:02:21]} 11. Nd6+ {[%clk 0:02:27]}  Ke7 {[%clk 0:02:07]} 12. b4 {[%clk 0:02:19]}  Nd5 {[%clk 0:01:40]} 13. Rxd5 {[%clk 0:02:10]}  exd5 {[%clk 0:01:39]} 14. Bxa6 {[%clk 0:02:07]}  Bxd6 {[%clk 0:01:28]} 15. Bxd6+ {[%clk 0:01:58]}  Kxd6 {[%clk 0:01:28]} 16. Bd3 {[%clk 0:01:58]}  Bg4 {[%clk 0:01:26]} 17. Nd4 {[%clk 0:01:58]}  Rhe8+ {[%clk 0:01:25]} 18. Kd2 {[%clk 0:01:58]}  a6 {[%clk 0:01:24]} 19. a4 {[%clk 0:01:57]}  Bh5 {[%clk 0:01:14]} 20. f4 {[%clk 0:01:55]}  Bg4 {[%clk 0:00:55]} 21. f5 {[%clk 0:01:53]}  g6 {[%clk 0:00:54]} 22. fxg6 {[%clk 0:01:48]}  fxg6 {[%clk 0:00:53]} 23. h3 {[%clk 0:01:44]}  Bd7 {[%clk 0:00:49]} 24. a5 {[%clk 0:01:44]}  Rf8 {[%clk 0:00:48]} 25. Nf3 {[%clk 0:01:31]}  Bf5 {[%clk 0:00:43]} 26. Bxf5 {[%clk 0:01:23]}  Rxf5 {[%clk 0:00:43]} 27. Re1 {[%clk 0:01:23]}  Raf8 {[%clk 0:00:33]} 28. Kd3 {[%clk 0:01:23]}  R8f7 {[%clk 0:00:32]} 29. Nd4 {[%clk 0:01:21]}  Re5 {[%clk 0:00:26]} 30. Rb1 {[%clk 0:01:14]}  Rf2 {[%clk 0:00:23]} 31. b5 {[%clk 0:01:14]}  Rxg2 {[%clk 0:00:18]} 32. bxa6 {[%clk 0:01:14]}  Rg3+ {[%clk 0:00:18]} 33. Kd2 {[%clk 0:01:14]}  bxa6 {[%clk 0:00:13]} 34. Rb6+ {[%clk 0:01:14]}  Kd7 {[%clk 0:00:13]} 35. Rxa6 {[%clk 0:01:14]}  Rxh3 {[%clk 0:00:11]} 36. Ra7+ {[%clk 0:01:14]}  Kc8 {[%clk 0:00:10]} 37. a6 {[%clk 0:01:14]}  Rg5 {[%clk 0:00:05]} 38. Rg7 {[%clk 0:01:13]}  Rg2+ {[%clk 0:00:04]} 39. Ne2 {[%clk 0:01:14]}  Rhh2 {[%clk 0:00:04]} 40. a7 {[%clk 0:01:11]}  Rxe2+ {[%clk 0:00:04]} 41. Kd3 {[%clk 0:01:11]}  Rd2+ {[%clk 0:00:02]} 42. Ke3 {[%clk 0:01:11]}  Rhe2+ {[%clk 0:00:03]} 43. Kf3 {[%clk 0:01:11]}  Rf2+ {[%clk 0:00:03]} 44. Kg3 {[%clk 0:01:11]}  Rg2+ {[%clk 0:00:03]} 45. Kf4 {[%clk 0:01:11]}  Ra2 {[%clk 0:00:03]} 46. Ke5 {[%clk 0:01:10]}  Ra3 {[%clk 0:00:01]} 47. Kxd5 {[%clk 0:01:09]}  Rg5+ {[%clk 0:00:01]} 48. Kc4 {[%clk 0:01:10]}  Ra6 {[%clk 0:00:01]} 49. Kb4 {[%clk 0:01:11]}  Rb6+ {[%clk 0:00:01]} 50. Kc4 {[%clk 0:01:10]}  Rd6 {[%clk 0:00:01]} 51. Rg8+ {[%clk 0:01:11]}  Kc7 {[%clk 0:00:01]} 52. a8=Q {[%clk 0:01:11]}  Rc6+ {[%clk 0:00:02]} 53. Kd4 {[%clk 0:01:11]}  Rg4+ {[%clk 0:00:02]} 54. Ke3 {[%clk 0:01:11]}  Rg3+ {[%clk 0:00:02]} 55. Kf2 {[%clk 0:01:12]}  Rgxc3 {[%clk 0:00:02]} 56. Qa7+ {[%clk 0:01:11]}  Kd6 {[%clk 0:00:03]} 57. Rd8+ {[%clk 0:01:11]}  Ke5 {[%clk 0:00:03]} 58. Qd4+ {[%clk 0:01:11]}  Kf5 {[%clk 0:00:02]} 59. Rf8+ {[%clk 0:01:11]}  Kg5 {[%clk 0:00:03]} 60. Qf4+ {[%clk 0:01:07]}  Kh5 {[%clk 0:00:03]} 61. Qe5+ {[%clk 0:01:00]}  Kh4 {[%clk 0:00:01]} 62. Rf4+ {[%clk 0:00:59]} 1-0


[Site "https://www.chess.com"]

[Event "Titled Tuesday Blitz February 21 Late 2023"]
[White "Sadovsky, Artem"]
[Black "Adel, Sara"]
[WhiteFideId "4155840"]
[BlackFideId "10616764"]
[WhiteElo "2276"]
[BlackElo "1739"]
[Result "1-0"]
[Round "01"]
[TimeControl "180+2"]
[Date "2023.02.21"]
[WhiteClock "0:00:43"]
[BlackClock "0:00:12"]

1. Nf3 {[%clk 0:02:44]}  Nf6 {[%clk 0:02:59]} 2. e3 {[%clk 0:02:42]}  g6 {[%clk 0:02:59]} 3. b3 {[%clk 0:02:42]}  Bg7 {[%clk 0:02:59]} 4. Bb2 {[%clk 0:02:42]}  O-O {[%clk 0:02:59]} 5. Be2 {[%clk 0:02:42]}  Nc6 {[%clk 0:02:59]} 6. O-O {[%clk 0:02:43]}  d6 {[%clk 0:03:00]} 7. d4 {[%clk 0:02:41]}  e5 {[%clk 0:02:58]} 8. dxe5 {[%clk 0:02:36]}  Ng4 {[%clk 0:02:57]} 9. c4 {[%clk 0:02:24]}  Ncxe5 {[%clk 0:02:29]} 10. Nxe5 {[%clk 0:02:20]}  Nxe5 {[%clk 0:02:26]} 11. Nc3 {[%clk 0:02:15]}  h5 {[%clk 0:02:14]} 12. h3 {[%clk 0:02:08]}  Be6 {[%clk 0:02:11]} 13. Qd2 {[%clk 0:01:59]}  Qd7 {[%clk 0:02:07]} 14. f4 {[%clk 0:01:53]}  Nc6 {[%clk 0:02:05]} 15. Nd5 {[%clk 0:01:44]}  Bxh3 {[%clk 0:01:12]} 16. Bxg7 {[%clk 0:01:38]}  Kxg7 {[%clk 0:01:12]} 17. gxh3 {[%clk 0:01:32]}  Qxh3 {[%clk 0:01:11]} 18. Bf3 {[%clk 0:01:32]}  Rae8 {[%clk 0:00:51]} 19. Qg2 {[%clk 0:01:24]}  Qd7 {[%clk 0:00:42]} 20. Rae1 {[%clk 0:01:23]}  Ne7 {[%clk 0:00:40]} 21. Nxe7 {[%clk 0:01:19]}  Rxe7 {[%clk 0:00:40]} 22. Bxb7 {[%clk 0:01:20]}  h4 {[%clk 0:00:31]} 23. Bc6 {[%clk 0:01:20]}  Qf5 {[%clk 0:00:27]} 24. Kh2 {[%clk 0:01:15]}  Rh8 {[%clk 0:00:23]} 25. Qh3 {[%clk 0:01:14]}  Qc2+ {[%clk 0:00:22]} 26. Qg2 {[%clk 0:00:50]}  Qf5 {[%clk 0:00:12]} 27. e4 {[%clk 0:00:48]}  Qh5 {[%clk 0:00:12]} 28. f5 {[%clk 0:00:47]}  g5 {[%clk 0:00:12]} 29. f6+ {[%clk 0:00:43]} 1-0


[Site "https://www.chess.com"]

[Event "Titled Tuesday Blitz February 21 Late 2023"]
[White "Levine, David"]
[Black "Nygren, Kim"]
[WhiteFideId "2011611"]
[BlackFideId "1706136"]
[WhiteElo "2040"]
[BlackElo "2183"]
[Result "0-1"]
[Round "01"]
[TimeControl "180+2"]
[Date "2023.02.21"]
[WhiteClock "0:00:02"]
[BlackClock "0:00:16"]

1. d4 {[%clk 0:02:59]}  Nf6 {[%clk 0:02:57]} 2. c4 {[%clk 0:02:59]}  e6 {[%clk 0:02:56]} 3. g3 {[%clk 0:02:59]}  d5 {[%clk 0:02:56]} 4. Bg2 {[%clk 0:02:58]}  Bb4+ {[%clk 0:02:55]} 5. Bd2 {[%clk 0:02:58]}  Be7 {[%clk 0:02:54]} 6. Nf3 {[%clk 0:02:58]}  O-O {[%clk 0:02:53]} 7. O-O {[%clk 0:02:57]}  dxc4 {[%clk 0:02:52]} 8. Qc2 {[%clk 0:02:55]}  a6 {[%clk 0:02:50]} 9. Qxc4 {[%clk 0:02:53]}  b5 {[%clk 0:02:49]} 10. Qc2 {[%clk 0:02:52]}  Bb7 {[%clk 0:02:49]} 11. Bf4 {[%clk 0:02:44]}  Nd5 {[%clk 0:02:44]} 12. Nbd2 {[%clk 0:02:41]}  Nxf4 {[%clk 0:02:40]} 13. gxf4 {[%clk 0:02:41]}  Nd7 {[%clk 0:02:39]} 14. Ne4 {[%clk 0:02:32]}  Rc8 {[%clk 0:02:30]} 15. Nc5 {[%clk 0:02:29]}  Nxc5 {[%clk 0:02:20]} 16. dxc5 {[%clk 0:02:29]}  Bc6 {[%clk 0:01:58]} 17. b4 {[%clk 0:02:21]}  Bf6 {[%clk 0:01:55]} 18. Rad1 {[%clk 0:02:19]}  Qe7 {[%clk 0:01:55]} 19. e3 {[%clk 0:02:10]}  Rcd8 {[%clk 0:01:52]} 20. Rxd8 {[%clk 0:01:41]}  Rxd8 {[%clk 0:01:50]} 21. Rd1 {[%clk 0:01:41]}  g6 {[%clk 0:01:46]} 22. Ne1 {[%clk 0:01:12]}  Bxg2 {[%clk 0:01:36]} 23. Kxg2 {[%clk 0:01:12]}  Rxd1 {[%clk 0:01:30]} 24. Qxd1 {[%clk 0:01:11]}  Bc3 {[%clk 0:01:30]} 25. Nd3 {[%clk 0:01:08]}  Qd7 {[%clk 0:01:24]} 26. Qc2 {[%clk 0:01:07]}  Qd5+ {[%clk 0:01:20]} 27. f3 {[%clk 0:01:01]}  Bf6 {[%clk 0:01:11]} 28. Qb3 {[%clk 0:00:49]}  Qh5 {[%clk 0:01:00]} 29. Qa3 {[%clk 0:00:40]}  g5 {[%clk 0:00:56]} 30. fxg5 {[%clk 0:00:39]}  Bxg5 {[%clk 0:00:49]} 31. Nf2 {[%clk 0:00:38]}  Qg6 {[%clk 0:00:45]} 32. Qxa6 {[%clk 0:00:35]}  Bxe3+ {[%clk 0:00:40]} 33. Kf1 {[%clk 0:00:31]}  Qc2 {[%clk 0:00:35]} 34. Ne4 {[%clk 0:00:21]}  Qd3+ {[%clk 0:00:31]} 35. Kg2 {[%clk 0:00:20]}  Kg7 {[%clk 0:00:25]} 36. Qc6 {[%clk 0:00:17]}  Qe2+ {[%clk 0:00:23]} 37. Kg3 {[%clk 0:00:17]}  Bg1 {[%clk 0:00:20]} 38. Ng5 {[%clk 0:00:03]}  Qxh2+ {[%clk 0:00:16]} 39. Kg4 {[%clk 0:00:02]}  h5# {[%clk 0:00:16]} 0-1


[Site "https://www.chess.com"]

[Event "Titled Tuesday Blitz February 21 Late 2023"]
[White "Matsuura, Frederico"]
[Black "Toncheva, Nadya"]
[WhiteFideId "2107848"]
[BlackFideId "2924056"]
[WhiteElo "2244"]
[BlackElo "2295"]
[Result "1-0"]
[Round "01"]
[TimeControl "180+2"]
[Date "2023.02.21"]
[WhiteClock "0:00:19"]
[BlackClock "0:00:05"]

1. d4 {[%clk 0:02:59]}  d5 {[%clk 0:02:59]} 2. c4 {[%clk 0:02:56]}  c6 {[%clk 0:03:00]} 3. Nc3 {[%clk 0:02:54]}  Nf6 {[%clk 0:03:00]} 4. e3 {[%clk 0:02:55]}  e6 {[%clk 0:03:00]} 5. Nf3 {[%clk 0:02:54]}  Nbd7 {[%clk 0:03:00]} 6. Bd3 {[%clk 0:02:54]}  dxc4 {[%clk 0:02:59]} 7. Bxc4 {[%clk 0:02:55]}  b5 {[%clk 0:02:59]} 8. Bd3 {[%clk 0:02:55]}  Bd6 {[%clk 0:02:59]} 9. e4 {[%clk 0:02:55]}  e5 {[%clk 0:02:56]} 10. O-O {[%clk 0:02:54]}  O-O {[%clk 0:02:55]} 11. Bg5 {[%clk 0:02:52]}  h6 {[%clk 0:02:50]} 12. Bh4 {[%clk 0:02:51]}  a6 {[%clk 0:02:50]} 13. Re1 {[%clk 0:02:36]}  Qe7 {[%clk 0:02:40]} 14. Qc2 {[%clk 0:02:26]}  Bb7 {[%clk 0:02:34]} 15. Rad1 {[%clk 0:02:23]}  Rfe8 {[%clk 0:02:14]} 16. a3 {[%clk 0:02:13]}  Qe6 {[%clk 0:01:56]} 17. Bg3 {[%clk 0:02:02]}  Rad8 {[%clk 0:01:50]} 18. d5 {[%clk 0:01:27]}  cxd5 {[%clk 0:01:41]} 19. exd5 {[%clk 0:01:26]}  Qg4 {[%clk 0:01:12]} 20. h3 {[%clk 0:01:21]}  Qh5 {[%clk 0:01:10]} 21. Be2 {[%clk 0:01:08]}  Qg6 {[%clk 0:00:52]} 22. Bd3 {[%clk 0:01:00]}  Qh5 {[%clk 0:00:46]} 23. Be2 {[%clk 0:01:01]}  Bc5 {[%clk 0:00:28]} 24. Nxe5 {[%clk 0:00:56]}  Qg5 {[%clk 0:00:27]} 25. Nd3 {[%clk 0:00:47]}  Bb6 {[%clk 0:00:22]} 26. Bf4 {[%clk 0:00:46]}  Qg6 {[%clk 0:00:22]} 27. Nb4 {[%clk 0:00:44]}  Qxc2 {[%clk 0:00:21]} 28. Nxc2 {[%clk 0:00:44]}  Nc5 {[%clk 0:00:20]} 29. Bf3 {[%clk 0:00:42]}  Rxe1+ {[%clk 0:00:18]} 30. Nxe1 {[%clk 0:00:42]}  Ba5 {[%clk 0:00:14]} 31. b4 {[%clk 0:00:42]}  Bb6 {[%clk 0:00:06]} 32. bxc5 {[%clk 0:00:42]}  Bxc5 {[%clk 0:00:07]} 33. a4 {[%clk 0:00:39]}  b4 {[%clk 0:00:07]} 34. Ne4 {[%clk 0:00:39]}  Nxe4 {[%clk 0:00:07]} 35. Bxe4 {[%clk 0:00:39]}  b3 {[%clk 0:00:07]} 36. Rb1 {[%clk 0:00:34]}  Bxd5 {[%clk 0:00:07]} 37. Rd1 {[%clk 0:00:32]}  b2 {[%clk 0:00:07]} 38. Bxd5 {[%clk 0:00:32]}  Rxd5 {[%clk 0:00:07]} 39. Rb1 {[%clk 0:00:33]}  Bd4 {[%clk 0:00:06]} 40. Kf1 {[%clk 0:00:29]}  Rc5 {[%clk 0:00:06]} 41. Ke2 {[%clk 0:00:29]}  Rf5 {[%clk 0:00:05]} 42. Be3 {[%clk 0:00:28]}  Bf6 {[%clk 0:00:06]} 43. Nd3 {[%clk 0:00:28]}  Ra5 {[%clk 0:00:06]} 44. Kd2 {[%clk 0:00:25]}  Rxa4 {[%clk 0:00:06]} 45. Nxb2 {[%clk 0:00:26]}  Rb4 {[%clk 0:00:06]} 46. Kc2 {[%clk 0:00:26]}  a5 {[%clk 0:00:06]} 47. Bd2 {[%clk 0:00:26]}  Re4 {[%clk 0:00:05]} 48. Re1 {[%clk 0:00:22]}  Rxe1 {[%clk 0:00:05]} 49. Bxe1 {[%clk 0:00:22]}  Bd8 {[%clk 0:00:06]} 50. Nc4 {[%clk 0:00:21]}  a4 {[%clk 0:00:06]} 51. Nb2 {[%clk 0:00:21]}  a3 {[%clk 0:00:05]} 52. Nc4 {[%clk 0:00:21]}  Be7 {[%clk 0:00:05]} 53. Kb3 {[%clk 0:00:21]}  g5 {[%clk 0:00:05]} 54. Nxa3 {[%clk 0:00:20]}  Kg7 {[%clk 0:00:05]} 55. Nb5 {[%clk 0:00:20]}  Kg6 {[%clk 0:00:05]} 56. Kc4 {[%clk 0:00:21]}  f5 {[%clk 0:00:06]} 57. Kd5 {[%clk 0:00:21]}  Bf6 {[%clk 0:00:06]} 58. Bc3 {[%clk 0:00:20]}  Be7 {[%clk 0:00:06]} 59. Ke6 {[%clk 0:00:20]}  Bc5 {[%clk 0:00:06]} 60. f3 {[%clk 0:00:19]}  Bb6 {[%clk 0:00:07]} 61. Nd6 {[%clk 0:00:19]}  f4 {[%clk 0:00:07]} 62. Nc4 {[%clk 0:00:19]}  Bf2 {[%clk 0:00:07]} 63. Ne5+ {[%clk 0:00:19]}  Kh5 {[%clk 0:00:08]} 64. Ng4 {[%clk 0:00:19]}  Bc5 {[%clk 0:00:08]} 65. Be1 {[%clk 0:00:18]}  Bb6 {[%clk 0:00:07]} 66. Kf5 {[%clk 0:00:17]}  Bd8 {[%clk 0:00:07]} 67. Nf6+ {[%clk 0:00:18]}  Bxf6 {[%clk 0:00:07]} 68. Kxf6 {[%clk 0:00:18]}  g4 {[%clk 0:00:05]} 69. hxg4# {[%clk 0:00:19]} 1-0


[Site "https://www.chess.com"]

[Event "Titled Tuesday Blitz February 21 Late 2023"]
[White "Ibadov, Dashgyn"]
[Black "Marcolino, Daniel Mattos"]
[WhiteFideId "24107514"]
[BlackFideId "2106841"]
[WhiteElo "2391"]
[BlackElo "2006"]
[Result "1-0"]
[Round "01"]
[TimeControl "180+2"]
[Date "2023.02.21"]
[WhiteClock "0:00:40"]
[BlackClock "0:00:01"]

1. e4 {[%clk 0:03:00]}  c6 {[%clk 0:02:59]} 2. d4 {[%clk 0:02:59]}  d5 {[%clk 0:03:00]} 3. Nc3 {[%clk 0:02:59]}  dxe4 {[%clk 0:03:00]} 4. Nxe4 {[%clk 0:03:00]}  Nd7 {[%clk 0:03:00]} 5. Nf3 {[%clk 0:02:55]}  Ngf6 {[%clk 0:03:01]} 6. Bd3 {[%clk 0:02:54]}  Nxe4 {[%clk 0:03:00]} 7. Bxe4 {[%clk 0:02:55]}  Nf6 {[%clk 0:03:01]} 8. Bd3 {[%clk 0:02:55]}  Bg4 {[%clk 0:03:01]} 9. c3 {[%clk 0:02:51]}  e6 {[%clk 0:03:00]} 10. h3 {[%clk 0:02:51]}  Bxf3 {[%clk 0:03:00]} 11. Qxf3 {[%clk 0:02:52]}  Qd5 {[%clk 0:02:57]} 12. Qxd5 {[%clk 0:02:46]}  cxd5 {[%clk 0:02:56]} 13. Bf4 {[%clk 0:02:28]}  a6 {[%clk 0:02:46]} 14. a4 {[%clk 0:02:27]}  Kd7 {[%clk 0:02:36]} 15. a5 {[%clk 0:02:09]}  Bd6 {[%clk 0:02:23]} 16. Bxd6 {[%clk 0:02:09]}  Kxd6 {[%clk 0:02:24]} 17. Ra4 {[%clk 0:02:10]}  Rhb8 {[%clk 0:01:57]} 18. Rb4 {[%clk 0:02:09]}  Kc6 {[%clk 0:01:48]} 19. Kd2 {[%clk 0:02:08]}  b6 {[%clk 0:01:48]} 20. axb6 {[%clk 0:01:59]}  Rxb6 {[%clk 0:01:49]} 21. Rxb6+ {[%clk 0:01:54]}  Kxb6 {[%clk 0:01:50]} 22. g4 {[%clk 0:01:37]}  g5 {[%clk 0:01:16]} 23. f3 {[%clk 0:01:30]}  h6 {[%clk 0:01:15]} 24. h4 {[%clk 0:01:30]}  Rg8 {[%clk 0:00:22]} 25. hxg5 {[%clk 0:01:30]}  hxg5 {[%clk 0:00:23]} 26. Rh6 {[%clk 0:01:27]}  Ne8 {[%clk 0:00:23]} 27. Rh7 {[%clk 0:01:23]}  Nd6 {[%clk 0:00:23]} 28. b3 {[%clk 0:01:24]}  a5 {[%clk 0:00:22]} 29. c4 {[%clk 0:01:23]}  dxc4 {[%clk 0:00:13]} 30. bxc4 {[%clk 0:01:23]}  Kc7 {[%clk 0:00:11]} 31. c5 {[%clk 0:01:22]}  Ne8 {[%clk 0:00:04]} 32. Rxf7+ {[%clk 0:01:22]}  Kc6 {[%clk 0:00:05]} 33. Be4+ {[%clk 0:01:20]}  Kb5 {[%clk 0:00:05]} 34. Rb7+ {[%clk 0:01:14]}  Kc4 {[%clk 0:00:05]} 35. Ke3 {[%clk 0:01:08]}  Nf6 {[%clk 0:00:05]} 36. Ra7 {[%clk 0:00:58]}  Nxe4 {[%clk 0:00:02]} 37. Kxe4 {[%clk 0:00:43]}  e5 {[%clk 0:00:01]} 38. dxe5 {[%clk 0:00:40]} 1-0


[Site "https://www.chess.com"]

[Event "Titled Tuesday Blitz February 21 Late 2023"]
[White "Bongo Akanga Ndjila, Barthelemy"]
[Black "Bilan, Danila"]
[WhiteFideId "10609431"]
[BlackFideId "24161918"]
[WhiteElo "1824"]
[BlackElo "2303"]
[Result "0-1"]
[Round "01"]
[TimeControl "180+2"]
[Date "2023.02.21"]
[WhiteClock "0:01:20"]
[BlackClock "0:00:39"]

1. d4 {[%clk 0:03:00]}  d5 {[%clk 0:02:59]} 2. c4 {[%clk 0:02:59]}  c6 {[%clk 0:02:59]} 3. e3 {[%clk 0:02:58]}  Nf6 {[%clk 0:02:59]} 4. Nc3 {[%clk 0:02:56]}  e6 {[%clk 0:02:59]} 5. Qc2 {[%clk 0:02:54]}  Nbd7 {[%clk 0:02:55]} 6. Nf3 {[%clk 0:02:53]}  Bd6 {[%clk 0:02:54]} 7. c5 {[%clk 0:02:53]}  Bc7 {[%clk 0:02:53]} 8. b4 {[%clk 0:02:54]}  e5 {[%clk 0:02:52]} 9. Nxe5 {[%clk 0:02:52]}  Nxe5 {[%clk 0:02:51]} 10. dxe5 {[%clk 0:02:52]}  Bxe5 {[%clk 0:02:52]} 11. Bb2 {[%clk 0:02:53]}  O-O {[%clk 0:02:47]} 12. Bd3 {[%clk 0:02:53]}  Re8 {[%clk 0:02:38]} 13. Na4 {[%clk 0:02:46]}  Bxb2 {[%clk 0:02:26]} 14. Nxb2 {[%clk 0:02:40]}  d4 {[%clk 0:02:08]} 15. O-O-O {[%clk 0:02:40]}  Nd5 {[%clk 0:01:50]} 16. a3 {[%clk 0:02:32]}  a5 {[%clk 0:01:38]} 17. Bxh7+ {[%clk 0:02:26]}  Kf8 {[%clk 0:01:37]} 18. Nc4 {[%clk 0:02:22]}  axb4 {[%clk 0:01:34]} 19. Nd6 {[%clk 0:02:21]}  Re7 {[%clk 0:01:17]} 20. Rxd4 {[%clk 0:02:20]}  Rxa3 {[%clk 0:01:10]} 21. Rxd5 {[%clk 0:01:44]}  cxd5 {[%clk 0:01:02]} 22. Qb2 {[%clk 0:01:33]}  Rc3+ {[%clk 0:00:54]} 23. Bc2 {[%clk 0:01:32]}  Rxc5 {[%clk 0:00:49]} 24. Nxc8 {[%clk 0:01:26]}  Qxc8 {[%clk 0:00:50]} 25. Qb3 {[%clk 0:01:21]}  Rc3 {[%clk 0:00:41]} 26. Qb2 {[%clk 0:01:20]}  b3 {[%clk 0:00:39]} 0-1


[Site "https://www.chess.com"]

[Event "Titled Tuesday Blitz February 21 Late 2023"]
[White "Krallis, Christos"]
[Black "Chemin, Justo Reinaldo"]
[WhiteFideId "4298896"]
[BlackFideId "2101580"]
[WhiteElo "2344"]
[BlackElo "2040"]
[Result "1-0"]
[Round "01"]
[TimeControl "180+2"]
[Date "2023.02.21"]
[WhiteClock "0:00:09"]
[BlackClock "0:00:02"]

1. d4 {[%clk 0:03:00]}  e6 {[%clk 0:03:00]} 2. Bf4 {[%clk 0:02:59]}  d5 {[%clk 0:03:00]} 3. Nf3 {[%clk 0:02:59]}  Bd6 {[%clk 0:03:00]} 4. Bg3 {[%clk 0:02:58]}  Nf6 {[%clk 0:02:59]} 5. e3 {[%clk 0:02:57]}  Ne4 {[%clk 0:02:58]} 6. Nbd2 {[%clk 0:02:54]}  Nxg3 {[%clk 0:02:58]} 7. hxg3 {[%clk 0:02:55]}  c5 {[%clk 0:02:56]} 8. c3 {[%clk 0:02:54]}  Nc6 {[%clk 0:02:55]} 9. Bd3 {[%clk 0:02:55]}  h6 {[%clk 0:02:54]} 10. Qe2 {[%clk 0:02:55]}  f5 {[%clk 0:02:47]} 11. O-O-O {[%clk 0:02:48]}  Qa5 {[%clk 0:02:41]} 12. Kb1 {[%clk 0:02:48]}  c4 {[%clk 0:02:38]} 13. Bc2 {[%clk 0:02:45]}  b5 {[%clk 0:02:38]} 14. g4 {[%clk 0:02:44]}  fxg4 {[%clk 0:02:34]} 15. Ng5 {[%clk 0:02:37]}  b4 {[%clk 0:02:34]} 16. Qxg4 {[%clk 0:02:26]}  bxc3 {[%clk 0:02:24]} 17. Qh5+ {[%clk 0:02:26]}  Kd7 {[%clk 0:02:18]} 18. Qf7+ {[%clk 0:02:16]}  Ne7 {[%clk 0:02:10]} 19. Nxc4 {[%clk 0:01:01]}  dxc4 {[%clk 0:01:55]} 20. Qxe6+ {[%clk 0:01:01]}  Kc7 {[%clk 0:01:52]} 21. Qxc4+ {[%clk 0:01:00]}  Kb6 {[%clk 0:01:35]} 22. Nf7 {[%clk 0:00:51]}  Ba6 {[%clk 0:01:26]} 23. Qe6 {[%clk 0:00:49]}  Qb4 {[%clk 0:01:12]} 24. Qxd6+ {[%clk 0:00:39]}  Qxd6 {[%clk 0:01:11]} 25. Nxd6 {[%clk 0:00:40]}  cxb2 {[%clk 0:01:10]} 26. Bd3 {[%clk 0:00:36]}  Bxd3+ {[%clk 0:01:02]} 27. Rxd3 {[%clk 0:00:35]}  Kc6 {[%clk 0:00:59]} 28. Ne4 {[%clk 0:00:34]}  Rhf8 {[%clk 0:00:57]} 29. Rc3+ {[%clk 0:00:30]}  Kd5 {[%clk 0:00:54]} 30. Rh5+ {[%clk 0:00:28]}  g5 {[%clk 0:00:46]} 31. f3 {[%clk 0:00:22]}  Rac8 {[%clk 0:00:32]} 32. Rxh6 {[%clk 0:00:20]}  Nf5 {[%clk 0:00:22]} 33. Rxc8 {[%clk 0:00:09]}  Rxc8 {[%clk 0:00:22]} 34. Rg6 {[%clk 0:00:08]}  Nxe3 {[%clk 0:00:21]} 35. Rxg5+ {[%clk 0:00:07]}  Kxd4 {[%clk 0:00:21]} 36. Kxb2 {[%clk 0:00:07]}  Rc2+ {[%clk 0:00:18]} 37. Kb1 {[%clk 0:00:06]}  Re2 {[%clk 0:00:16]} 38. Rc5 {[%clk 0:00:05]}  Nd5 {[%clk 0:00:13]} 39. Rc2 {[%clk 0:00:03]}  Rxc2 {[%clk 0:00:10]} 40. Kxc2 {[%clk 0:00:04]}  Ne3+ {[%clk 0:00:10]} 41. Kb3 {[%clk 0:00:04]}  Nxg2 {[%clk 0:00:11]} 42. Ng5 {[%clk 0:00:04]}  Kc5 {[%clk 0:00:09]} 43. Kc3 {[%clk 0:00:04]}  Kd5 {[%clk 0:00:08]} 44. Ne4 {[%clk 0:00:05]}  Nf4 {[%clk 0:00:06]} 45. Nd2 {[%clk 0:00:06]}  Ne2+ {[%clk 0:00:05]} 46. Kd3 {[%clk 0:00:06]}  Nc1+ {[%clk 0:00:04]} 47. Ke3 {[%clk 0:00:07]}  Nxa2 {[%clk 0:00:04]} 48. f4 {[%clk 0:00:07]}  Nc3 {[%clk 0:00:03]} 49. Kf3 {[%clk 0:00:08]}  Ke6 {[%clk 0:00:01]} 50. Kg4 {[%clk 0:00:08]}  a5 {[%clk 0:00:02]} 51. Kg5 {[%clk 0:00:09]} 1-0


[Site "https://www.chess.com"]

[Event "Titled Tuesday Blitz February 21 Late 2023"]
[White "Torres Dominguez, David"]
[Black "Berezin, Viktor"]
[WhiteFideId "2220857"]
[BlackFideId "14107872"]
[WhiteElo "1994"]
[BlackElo "2307"]
[Result "0-1"]
[Round "01"]
[TimeControl "180+2"]
[Date "2023.02.21"]
[WhiteClock "0:01:40"]
[BlackClock "0:01:09"]

1. e4 {[%clk 0:03:00]}  g6 {[%clk 0:02:59]} 2. Nc3 {[%clk 0:03:00]}  Bg7 {[%clk 0:02:58]} 3. f4 {[%clk 0:03:01]}  d6 {[%clk 0:02:57]} 4. Nf3 {[%clk 0:03:02]}  Nf6 {[%clk 0:02:56]} 5. Bc4 {[%clk 0:03:02]}  O-O {[%clk 0:02:57]} 6. Bb3 {[%clk 0:03:02]}  c6 {[%clk 0:02:55]} 7. d3 {[%clk 0:03:03]}  b5 {[%clk 0:02:51]} 8. O-O {[%clk 0:03:02]}  Nbd7 {[%clk 0:02:49]} 9. a3 {[%clk 0:03:00]}  e5 {[%clk 0:02:49]} 10. fxe5 {[%clk 0:03:00]}  dxe5 {[%clk 0:02:48]} 11. Be3 {[%clk 0:02:58]}  Ng4 {[%clk 0:02:46]} 12. Bd2 {[%clk 0:02:56]}  Qb6+ {[%clk 0:02:45]} 13. Kh1 {[%clk 0:02:50]}  Nf2+ {[%clk 0:02:40]} 14. Rxf2 {[%clk 0:02:50]}  Qxf2 {[%clk 0:02:41]} 15. Qc1 {[%clk 0:02:37]}  Qb6 {[%clk 0:02:34]} 16. Be3 {[%clk 0:02:34]}  Qc7 {[%clk 0:02:30]} 17. Qd2 {[%clk 0:02:34]}  a5 {[%clk 0:02:24]} 18. Rf1 {[%clk 0:02:34]}  b4 {[%clk 0:02:24]} 19. axb4 {[%clk 0:02:34]}  axb4 {[%clk 0:02:25]} 20. Nd1 {[%clk 0:02:34]}  c5 {[%clk 0:02:16]} 21. Bh6 {[%clk 0:02:26]}  Nb6 {[%clk 0:02:06]} 22. Bxg7 {[%clk 0:02:24]}  Kxg7 {[%clk 0:02:07]} 23. Qg5 {[%clk 0:02:24]}  f6 {[%clk 0:02:04]} 24. Qh4 {[%clk 0:02:23]}  c4 {[%clk 0:02:00]} 25. dxc4 {[%clk 0:02:22]}  Nxc4 {[%clk 0:02:01]} 26. Nf2 {[%clk 0:02:19]}  Be6 {[%clk 0:01:55]} 27. Nd3 {[%clk 0:02:18]}  Ne3 {[%clk 0:01:49]} 28. Bxe6 {[%clk 0:01:50]}  Nxf1 {[%clk 0:01:48]} 29. Ndxe5 {[%clk 0:01:47]}  fxe5 {[%clk 0:01:33]} 30. Ng5 {[%clk 0:01:46]}  h6 {[%clk 0:01:25]} 31. Nf3 {[%clk 0:01:42]}  Ne3 {[%clk 0:01:14]} 32. Qg3 {[%clk 0:01:42]}  Ra1+ {[%clk 0:01:12]} 33. Ng1 {[%clk 0:01:40]}  Rxg1+ {[%clk 0:01:09]} 34. Kxg1 {[%clk 0:01:40]}  Rf1# {[%clk 0:01:09]} 0-1


[Site "https://www.chess.com"]